bitfinex-derivatives/quotes_BTCF0:USTF0_20251228
["timestamp","ask_amount","ask_price","bid_price","bid_amount"]
[1766911147470,0.02559931,87836.0,87824.0,0.15384]
[1766911147674,0.01309207,87838.0,87824.0,0.15384]
[1766911147675,0.02559931,87835.0,87824.0,0.15384]
[1766911147883,0.0113936,87839.0,87824.0,0.15384]
[1766911148184,0.02559891,87838.0,87824.0,0.15384]
[1766911148384,0.02559891,87837.0,87824.0,0.15384]
[1766911148585,0.02559891,87836.0,87824.0,0.15384]
[1766911148887,0.0113936,87839.0,87824.0,0.15384]
[1766911148888,0.02559891,87835.0,87824.0,0.15384]
[1766911149078,0.01309207,87835.0,87824.0,0.15384]
[1766911149375,0.0113936,87839.0,87824.0,0.15384]
[1766911149576,0.03876645,87838.0,87824.0,0.15384]
[1766911149775,0.02567438,87837.0,87824.0,0.15384]
[1766911149974,0.02567438,87836.0,87824.0,0.15384]
[1766911150175,0.02567438,87835.0,87824.0,0.15384]
[1766911150472,0.0113936,87839.0,87824.0,0.15384]
[1766911150673,0.0256742,87838.0,87824.0,0.15384]
[1766911150875,0.0256742,87837.0,87824.0,0.15384]
[1766911151077,0.0256742,87836.0,87824.0,0.15384]
[1766911151375,0.0256742,87835.0,87824.0,0.15384]
[1766911151572,0.0113936,87839.0,87824.0,0.15384]
[1766911151773,0.01309207,87834.0,87824.0,0.15384]
[1766911151976,0.02567405,87833.0,87824.0,0.15384]
[1766911152178,0.02567405,87832.0,87824.0,0.15384]
[1766911152481,0.02567405,87831.0,87824.0,0.15384]
[1766911152680,0.02567405,87830.0,87824.0,0.15384]
[1766911152872,0.02567405,87829.0,87824.0,0.15384]
[1766911153077,0.02567405,87828.0,87824.0,0.15384]
[1766911153381,0.00017079,87841.0,87824.0,0.15384]
[1766911153580,0.02567381,87840.0,87824.0,0.15384]
[1766911153783,0.02567381,87839.0,87824.0,0.15384]
[1766911153984,0.02567381,87838.0,87824.0,0.15384]
[1766911154182,0.02567381,87837.0,87824.0,0.15384]
[1766911154387,0.02567381,87836.0,87824.0,0.15384]
[1766911154586,0.00017079,87841.0,87824.0,0.15384]
[1766911154587,0.02567381,87835.0,87824.0,0.15384]
[1766911154783,0.02567381,87834.0,87824.0,0.15384]
[1766911155086,0.01309207,87835.0,87824.0,0.15384]
[1766911155087,0.02567381,87833.0,87825.0,0.0113953]
[1766911155280,0.02567381,87832.0,87825.0,0.0113953]
[1766911155481,0.02567381,87831.0,87825.0,0.0113953]
[1766911155681,0.02567381,87830.0,87824.0,0.15384]
[1766911155885,0.02567381,87829.0,87824.0,0.1652354]
[1766911156081,0.02567381,87828.0,87824.0,0.1652354]
[1766911156281,0.00017079,87841.0,87824.0,0.1652354]
[1766911156484,0.02567359,87840.0,87824.0,0.1652354]
[1766911156682,0.02567359,87839.0,87824.0,0.1652354]
[1766911156986,0.02567359,87838.0,87824.0,0.1652354]
[1766911157188,0.02567359,87837.0,87824.0,0.1652354]
[1766911157381,0.02567359,87836.0,87824.0,0.1652354]
[1766911157686,0.02567359,87835.0,87824.0,0.1652354]
[1766911157881,0.02567359,87834.0,87824.0,0.1652354]
[1766911158179,0.02567359,87833.0,87824.0,0.1652354]
[1766911158381,0.02567359,87832.0,87824.0,0.1652354]
[1766911158679,0.02567359,87831.0,87824.0,0.1652354]
[1766911158980,0.02567359,87830.0,87824.0,0.1652354]
[1766911159288,0.02567359,87829.0,87824.0,0.1652354]
[1766911159483,0.02567359,87828.0,87824.0,0.1652354]
[1766911159683,0.00017079,87841.0,87824.0,0.1652354]
[1766911159883,0.0256735,87840.0,87824.0,0.1652354]
[1766911160184,0.0256735,87839.0,87824.0,0.1652354]
[1766911160482,0.0256735,87838.0,87824.0,0.1652354]
[1766911160784,0.0256735,87837.0,87824.0,0.1652354]
[1766911160983,0.0256735,87836.0,87824.0,0.1652354]
[1766911161182,0.0256735,87835.0,87824.0,0.1652354]
[1766911161387,0.0256735,87834.0,87824.0,0.1652354]
[1766911161587,0.0256735,87833.0,87824.0,0.1652354]
[1766911161785,0.0256735,87832.0,87824.0,0.1652354]
[1766911161991,0.00017079,87841.0,87826.0,0.0113951]
[1766911162289,0.02567351,87840.0,87826.0,0.0113951]
[1766911162488,0.02567351,87839.0,87826.0,0.0113951]
[1766911162685,0.02567351,87838.0,87826.0,0.0113951]
[1766911163086,0.02567351,87837.0,87826.0,0.0113951]
[1766911163292,0.02567351,87836.0,87826.0,0.0113951]
[1766911163591,0.02567351,87835.0,87826.0,0.0113951]
[1766911163785,0.01309207,87835.0,87826.0,0.0113951]
[1766911163983,0.00017079,87841.0,87826.0,0.0113951]
[1766911164183,0.02567356,87840.0,87826.0,0.0113951]
[1766911164393,0.02567356,87839.0,87826.0,0.0113951]
[1766911164689,0.02567356,87838.0,87826.0,0.0113951]
[1766911164878,0.02567356,87837.0,87826.0,0.0113951]
[1766911165081,0.0113925,87847.0,87824.0,0.15384]
[1766911165277,0.0113922,87850.0,87833.0,0.0113942]
[1766911165490,0.01309207,87846.0,87833.0,0.0683942]
[1766911165690,0.0113922,87850.0,87833.0,0.0683942]
[1766911165890,0.01309207,87845.0,87833.0,0.0683942]
[1766911166391,0.00017079,87848.0,87833.0,0.0683942]
[1766911166591,0.01309207,87847.0,87833.0,0.0683942]
[1766911167389,0.00017079,87848.0,87833.0,0.0683942]
[1766911167590,0.01309207,87847.0,87833.0,0.0683942]
[1766911167792,0.01309207,87847.0,87833.0,0.057]
[1766911167993,0.00017079,87848.0,87833.0,0.057]
[1766911168187,0.01309207,87847.0,87833.0,0.057]
[1766911168593,0.00017079,87848.0,87833.0,0.057]
[1766911170808,0.01309207,87847.0,87834.0,0.0113941]
[1766911170996,0.1082718,87853.0,87836.0,0.0113939]
[1766911171997,0.10844259,87853.0,87836.0,0.0113939]
[1766911173800,0.09705079,87853.0,87836.0,0.0113939]
[1766911174001,0.0113902,87865.0,87843.0,0.0113929]
[1766911174304,0.0113894,87872.0,87850.0,0.011392]
[1766911174505,0.05,87879.0,87852.0,0.0113917]
[1766911174808,0.0113894,87872.0,87853.0,0.09684]
[1766911175206,0.0113896,87870.0,87854.0,0.00017079]
[1766911175901,0.0113899,87868.0,87854.0,0.00017079]
[1766911177197,0.00011386,87871.0,87854.0,0.01156229]
[1766911177912,3.86e-06,87871.0,87858.0,0.0113909]
[1766911178103,3.86e-06,87871.0,87859.0,0.057]
[1766911180409,0.09684,87907.0,87859.0,0.057]
[1766911180712,0.0113866,87893.0,87870.0,0.0113895]
[1766911180915,0.0113866,87893.0,87871.0,0.15384]
[1766911181514,0.0113866,87893.0,87873.0,0.00017068]
[1766911187435,0.09684,87907.0,87876.0,0.0113887]
[1766911187629,0.0252449,87906.0,87876.0,0.0113887]
[1766911187934,0.0252449,87905.0,87876.0,0.0113887]
[1766911188230,0.0252449,87904.0,87876.0,0.0113887]
[1766911188434,0.011386,87897.0,87876.0,0.0113887]
[1766911190837,0.0113864,87895.0,87873.0,0.01155978]
[1766911192137,0.02524046,87894.0,87873.0,0.01155978]
[1766911192344,0.02524046,87893.0,87873.0,0.01155978]
[1766911192531,0.02524046,87892.0,87873.0,0.01155978]
[1766911192732,0.0113864,87895.0,87873.0,0.01155978]
[1766911192932,0.02524213,87894.0,87873.0,0.01155978]
[1766911193132,0.02524213,87893.0,87873.0,0.01155978]
[1766911193431,0.0113864,87895.0,87873.0,0.01155978]
[1766911193632,0.0252445,87894.0,87873.0,0.01155978]
[1766911193833,0.0252445,87893.0,87873.0,0.01155978]
[1766911194032,0.0113864,87895.0,87873.0,0.01155978]
[1766911194239,0.0252445,87894.0,87873.0,0.01155978]
[1766911194437,0.0252445,87893.0,87875.0,0.0113888]
[1766911194637,0.0113864,87895.0,87877.0,0.0113885]
[1766911194840,4.73e-06,87923.0,87881.0,0.011388]
[1766911194841,0.06155694,87909.0,87881.0,0.011388]
[1766911195028,0.02524786,87908.0,87886.0,0.00017068]
[1766911195229,4.73e-06,87923.0,87887.0,0.05696]
[1766911195429,0.0113836,87916.0,87892.0,0.0113865]
[1766911195634,4.73e-06,87923.0,87898.0,0.0113858]
[1766911195941,4.73e-06,87923.0,87888.0,0.1538]
[1766911195942,0.0113828,87922.0,87900.0,0.0113856]
[1766911196128,0.0113828,87922.0,87901.0,0.0968]
[1766911196335,4.73e-06,87923.0,87902.0,0.0113853]
[1766911196636,4.73e-06,87923.0,87904.0,0.00017068]
[1766911196835,0.01138743,87923.0,87904.0,0.00017068]
[1766911199840,4.73e-06,87923.0,87904.0,0.01155578]
[1766911200341,4.73e-06,87923.0,87907.0,0.0113846]
[1766911200541,4.73e-06,87923.0,87908.0,0.057]
[1766911201339,0.0113786,87955.0,87908.0,0.057]
[1766911201542,0.2988829,87971.0,87923.0,0.00017058]
[1766911201543,0.0968,87964.0,87923.0,0.00017058]
[1766911201844,0.0113798,87945.0,87924.0,0.1538]
[1766911202038,0.0113798,87945.0,87925.0,0.1538]
[1766911202238,0.0113777,87961.0,87925.0,0.1651824]
[1766911202239,0.0113794,87949.0,87925.0,0.1651824]
[1766911202840,0.0113797,87946.0,87925.0,0.1651824]
[1766911203340,0.0113797,87946.0,87925.0,0.0113824]
[1766911203756,0.0113745,87987.0,87926.0,0.11371971]
[1766911203942,0.0113774,87964.0,87942.0,0.0113802]
[1766911204141,0.0113769,87968.0,87944.0,0.0113798]
[1766911204343,0.0113764,87972.0,87944.0,0.0113798]
[1766911204544,0.0113759,87976.0,87947.0,0.0113795]
[1766911204740,0.09676,87987.0,87945.0,0.11370096]
[1766911205048,0.0113721,88005.0,87943.0,0.15376]
[1766911205049,0.0113745,87986.0,87957.0,0.0113781]
[1766911205244,0.0113745,87986.0,87959.0,0.011378]
[1766911205444,0.0113745,87986.0,87963.0,0.0113774]
[1766911205639,0.09676,88004.0,87970.0,0.0113765]
[1766911205846,0.09676,88004.0,87948.0,0.0113793]
[1766911205847,0.09676,88004.0,87971.0,0.15376]
[1766911206152,0.09676,88004.0,87978.0,0.00017048]
[1766911206654,0.0113729,87999.0,87978.0,0.00017048]
[1766911207957,0.0022724,88013.0,87978.0,0.00017048]
[1766911208158,0.0113742,87989.0,87979.0,0.15376]
[1766911208347,0.0022724,88013.0,87980.0,0.057]
[1766911208548,0.02446094,88012.0,87980.0,0.036]
[1766911208744,0.0022724,88013.0,87980.0,0.036]
[1766911209149,0.0113732,87996.0,87980.0,0.036]
[1766911209351,0.0113737,87993.0,87980.0,0.036]
[1766911209850,0.0113718,88007.0,87957.0,0.0113782]
[1766911210052,0.0022724,88013.0,87961.0,0.0113776]
[1766911210053,0.011374,87990.0,87961.0,0.0113776]
[1766911210259,0.011374,87990.0,87963.0,0.0113774]
[1766911210454,0.0022724,88013.0,87966.0,0.011377]
[1766911210656,0.0022724,88013.0,87964.0,0.11365961]
[1766911210858,0.0113741,87990.0,87980.0,0.00017048]
[1766911211057,0.0113734,87995.0,87981.0,0.15372]
[1766911211352,0.0113733,87996.0,87981.0,0.15372]
[1766911211743,0.0022724,88013.0,87981.0,0.15372]
[1766911211744,0.0022724,88013.0,87982.0,0.011375]
[1766911212146,0.0022724,88013.0,87981.0,0.15372]
[1766911212454,0.0113733,87996.0,87980.0,0.00017048]
[1766911212761,0.0113731,87997.0,87981.0,0.15372]
[1766911212957,0.0022724,88013.0,87980.0,8e-08]
[1766911213364,0.0113729,87999.0,87981.0,0.10208]
[1766911214048,0.0115433,87999.0,87981.0,0.10208]
[1766911214249,0.0022724,88013.0,87982.0,0.011375]
[1766911214660,0.0113712,88012.0,87984.0,0.0113747]
[1766911214864,0.0113712,88012.0,87988.0,0.0113741]
[1766911215359,0.0113712,88012.0,87989.0,0.11364927]
[1766911215548,0.0113712,88012.0,87990.0,0.057]
[1766911215750,0.0113716,88009.0,87989.0,0.11364927]
[1766911215956,0.0113716,88009.0,87991.0,0.057]
[1766911216352,0.0113673,88042.0,87997.0,0.011373]
[1766911216562,0.00227163,88043.0,88011.0,0.00017048]
[1766911216563,0.0113684,88033.0,88011.0,0.00017048]
[1766911216762,0.00227163,88043.0,88012.0,0.15372]
[1766911216763,0.0113683,88035.0,88012.0,0.15372]
[1766911217057,0.00227163,88043.0,88012.0,0.15372]
[1766911217058,0.0113695,88025.0,88012.0,0.15372]
[1766911217263,0.0113693,88027.0,88013.0,0.15372]
[1766911217463,0.0113693,88027.0,88011.0,0.00017048]
[1766911217667,0.0113697,88023.0,88012.0,0.10228]
[1766911219163,0.011371,88014.0,88011.0,8e-08]
[1766911219372,0.0113721,88005.0,87983.0,0.0113748]
[1766911219571,0.0113715,88010.0,87984.0,0.15368]
[1766911219868,0.0113728,87999.0,87985.0,0.15368]
[1766911220068,0.0113723,88003.0,87986.0,0.09668]
[1766911220275,0.09668,88029.0,87986.0,0.09685048]
[1766911220576,0.09668,88029.0,87992.0,0.0113736]
[1766911220872,0.0113688,88030.0,87987.0,0.11364669]
[1766911221071,0.0113688,88030.0,87990.0,0.0113739]
[1766911221372,0.0113688,88030.0,88002.0,0.0113723]
[1766911221563,0.0113688,88030.0,88003.0,0.15368]
[1766911221762,0.09668,88037.0,88003.0,0.15368]
[1766911221973,0.0113701,88021.0,88004.0,0.15368]
[1766911222370,0.011371,88014.0,88001.0,0.00017048]
[1766911222559,0.1080494,88026.0,88001.0,0.00017048]
[1766911222765,0.0113718,88008.0,88001.0,0.05700008]
[1766911222970,0.0113718,88008.0,87985.0,0.0113746]
[1766911223270,0.0113718,88008.0,87986.0,0.17061054]
[1766911223571,0.0113718,88008.0,87986.0,0.26729054]
[1766911223765,0.0113725,88002.0,87981.0,0.0113751]
[1766911223966,0.00017048,88000.0,87983.0,0.00017048]
[1766911224167,0.0113729,87999.0,87983.0,0.00017048]
[1766911224373,0.0113734,87995.0,87984.0,0.15368]
[1766911224666,0.0113734,87995.0,87983.0,0.00017048]
[1766911224872,0.0113734,87995.0,87985.0,0.057]
[1766911225166,0.0113734,87995.0,87983.0,0.00017048]
[1766911225370,0.0113734,87995.0,87984.0,0.10824]
[1766911227371,0.0113734,87995.0,87984.0,0.057]
[1766911227577,0.0113729,87999.0,87984.0,0.057]
[1766911227772,0.00017048,88000.0,87984.0,0.057]
[1766911228278,0.00017048,88000.0,87985.0,0.0113746]
[1766911229169,0.00017048,88000.0,87988.0,0.0113742]
[1766911229878,0.0113712,88012.0,87991.0,0.0113738]
[1766911230071,0.0113707,88016.0,87987.0,0.057]
[1766911230770,0.09668,88026.0,88006.0,0.0113719]
[1766911230976,0.011369,88029.0,88009.0,0.0113715]
[1766911231176,0.011369,88029.0,88010.0,0.15368]
[1766911231771,0.011369,88029.0,88011.0,0.00017048]
[1766911232772,0.09668,88034.0,88011.0,0.00017048]
[1766911233379,0.0113696,88024.0,88011.0,0.00017048]
[1766911233982,0.0113692,88028.0,88011.0,0.00017048]
[1766911235782,0.0113694,88026.0,88011.0,0.05717048]
[1766911236189,0.0113697,88024.0,88011.0,0.05717048]
[1766911236482,0.0113703,88019.0,88011.0,0.057]
[1766911236677,0.09668,88034.0,88006.0,0.057]
[1766911236878,0.02421655,88033.0,88006.0,0.057]
[1766911237079,0.02421655,88032.0,88006.0,0.057]
[1766911237383,0.0022724,88013.0,88006.0,0.057]
[1766911238586,0.0022724,88013.0,88003.0,0.057]
[1766911238779,0.0022724,88013.0,88000.0,0.057]
[1766911239287,0.0113718,88008.0,88000.0,0.057]
[1766911239471,0.0113718,88008.0,87997.0,0.09668]
[1766911239677,0.0113718,88008.0,87993.0,0.057]
[1766911239992,0.0113713,88011.0,87995.0,0.0113733]
[1766911241579,0.0113713,88011.0,87994.0,0.00017048]
[1766911241780,0.0022724,88013.0,87994.0,0.00017048]
[1766911242090,0.02398558,88012.0,87994.0,0.01154388]
[1766911242283,0.02398558,88011.0,87994.0,0.01154388]
[1766911242490,0.02398558,88010.0,87994.0,0.01154388]
[1766911242877,0.02398558,88010.0,87994.0,0.00017048]
[1766911243082,0.02398558,88009.0,87994.0,0.00017048]
[1766911243283,0.0113718,88007.0,87994.0,0.00017048]
[1766911243488,0.02398558,88006.0,87994.0,0.00017048]
[1766911245874,0.02398558,88005.0,87983.0,0.09668]
[1766911246089,0.011373,87998.0,87983.0,0.09668]
[1766911246291,0.0113733,87996.0,87983.0,0.09668]
[1766911246685,0.0113733,87996.0,87980.0,0.057]
[1766911247186,0.0113738,87992.0,87976.0,0.0001338]
[1766911247380,0.12068087,87991.0,87976.0,0.0001338]
[1766911247576,0.02400087,87990.0,87976.0,0.0001338]
[1766911247790,0.0113744,87987.0,87976.0,0.0001338]
[1766911248091,0.068374,87990.0,87976.0,0.0001338]
[1766911248388,0.09668,87995.0,87976.0,0.0001338]
[1766911248595,0.09685048,87997.0,87983.0,0.0113748]
[1766911249288,0.09685048,87997.0,87980.0,0.0113753]
[1766911249489,0.0113737,87993.0,87976.0,0.0001338]
[1766911249785,0.09685048,87997.0,87976.0,0.0001338]
[1766911250690,0.0113732,87996.0,87966.0,0.057]
[1766911250885,0.011375,87983.0,87962.0,0.0113775]
[1766911251791,0.00010759,87982.0,87965.0,0.00017048]
[1766911256880,0.0113758,87977.0,87965.0,0.00017048]
[1766911257688,0.0113753,87981.0,87965.0,0.00017048]
[1766911258289,0.0113755,87979.0,87965.0,0.00017048]
[1766911258492,0.00010759,87982.0,87965.0,0.00017048]
[1766911258691,0.00010759,87982.0,87953.0,0.01365265]
[1766911259487,0.0113764,87971.0,87953.0,0.01365265]
[1766911259692,0.01154688,87971.0,87953.0,0.01376633]
[1766911260886,0.00017048,87971.0,87953.0,0.00238763]
[1766911261188,0.0113769,87968.0,87953.0,0.00238763]
[1766911261592,0.01154688,87971.0,87953.0,0.00238763]
[1766911262180,0.00017048,87971.0,87942.0,0.0113801]
[1766911262690,0.0113773,87965.0,87945.0,0.0113798]
[1766911262891,0.0001338,87964.0,87945.0,0.0113798]
[1766911263288,0.0113775,87963.0,87941.0,0.0113802]
[1766911263586,0.15372,87962.0,87941.0,0.0113802]
[1766911263894,0.15372,87962.0,87937.0,0.07227282]
[1766911264082,0.0113779,87960.0,87937.0,0.0113807]
[1766911264283,0.0113783,87957.0,87937.0,0.0113807]
[1766911264483,0.0113786,87954.0,87933.0,0.0113812]
[1766911264694,0.00017048,87952.0,87933.0,0.0113812]
[1766911264992,0.00017048,87952.0,87930.0,0.00033738]
[1766911264993,0.15372,87951.0,87930.0,0.00033738]
[1766911265586,0.15372,87951.0,87938.0,0.0113806]
[1766911270003,0.0001338,87964.0,87939.0,0.21042807]
[1766911270294,0.05704,87964.0,87953.0,0.0113787]
[1766911270496,0.05704,87965.0,87953.0,0.0113787]
[1766911270695,0.0113764,87972.0,87953.0,0.0113787]
[1766911270896,0.15393048,87971.0,87954.0,0.00017048]
[1766911271499,0.15393048,87971.0,87955.0,0.0113784]
[1766911272700,0.00017048,87971.0,87955.0,0.0113784]
[1766911272899,0.15376,87970.0,87955.0,0.0113784]
[1766911273295,0.00017048,87971.0,87955.0,0.0113784]
[1766911273599,0.02852,87970.0,87955.0,0.0113784]
[1766911275404,0.02852,87970.0,87954.0,0.00017048]
[1766911277400,0.05704,87969.0,87954.0,0.00017048]
[1766911278204,0.05704,87969.0,87954.0,0.01154898]
[1766911280207,0.05704,87969.0,87954.0,0.00017048]
[1766911281010,0.0113768,87968.0,87954.0,0.00017048]
[1766911282006,0.05704,87969.0,87954.0,0.00017048]
[1766911282217,0.0113778,87961.0,87946.0,0.09672]
[1766911283714,0.0113785,87956.0,87942.0,0.09672]
[1766911285213,0.011378,87959.0,87942.0,0.09672]
[1766911289424,0.011378,87959.0,87941.0,0.0113802]
[1766911290228,0.0113776,87962.0,87939.0,0.15376]
[1766911290532,0.05704,87965.0,87948.0,0.0113794]
[1766911291026,0.0113767,87969.0,87939.0,0.21465212]
[1766911291229,0.17768065,87968.0,87941.0,0.06089212]
[1766911291431,0.15376,87968.0,87941.0,0.06089212]
[1766911291822,0.00017048,87971.0,87944.0,0.06089212]
[1766911292023,0.02391985,87970.0,87956.0,0.0113784]
[1766911292222,0.02391985,87969.0,87956.0,0.0113784]
[1766911292423,0.02391985,87968.0,87956.0,0.0113784]
[1766911292633,0.00017048,87971.0,87960.0,0.0113778]
[1766911292821,0.09672,87980.0,87960.0,0.0113778]
[1766911293020,0.0113754,87979.0,87960.0,0.0113778]
[1766911293226,0.02391507,87978.0,87960.0,0.0113778]
[1766911293427,0.02391507,87977.0,87960.0,0.0113778]
[1766911293629,0.02391507,87976.0,87960.0,0.0113778]
[1766911293829,0.00017048,87977.0,87960.0,0.0113778]
[1766911294025,0.02391479,87976.0,87960.0,0.0113778]
[1766911294225,0.00017048,87977.0,87960.0,0.0113778]
[1766911294733,0.00017048,87977.0,87962.0,0.0113775]
[1766911296036,0.0604751,87994.0,87969.0,0.0113767]
[1766911296227,0.1651339,87991.0,87967.0,0.0113769]
[1766911296535,0.0113742,87989.0,87967.0,0.0113769]
[1766911296936,0.0113745,87987.0,87967.0,0.0113769]
[1766911297134,0.0113747,87985.0,87968.0,0.00017048]
[1766911297332,0.1,87977.0,87968.0,0.00017048]
[1766911301142,0.0113762,87973.0,87955.0,0.0113785]
[1766911301442,0.0113762,87973.0,87953.0,0.0113787]
[1766911301835,0.0113758,87976.0,87955.0,0.0113784]
[1766911302036,0.1,87977.0,87957.0,0.00017048]
[1766911302232,0.1,87977.0,87959.0,0.011378]
[1766911302440,0.1,87977.0,87961.0,0.0113776]
[1766911303739,0.1,87977.0,87969.0,0.0113766]
[1766911304342,1e-08,87977.0,87969.0,0.0113766]
[1766911305842,1e-08,87977.0,87971.0,0.0113763]
[1766911306647,1e-08,87977.0,87968.0,0.0113768]
[1766911307342,1e-08,87977.0,87964.0,0.09672]
[1766911308043,1e-08,87977.0,87973.0,0.0113762]
[1766911308243,1e-08,87977.0,87975.0,0.0113758]
[1766911315352,1e-08,87977.0,87971.0,0.05704]
[1766911316448,1e-08,87977.0,87965.0,0.0113772]
[1766911316650,1e-08,87977.0,87960.0,0.06089212]
[1766911316651,1e-08,87977.0,87964.0,0.0113772]
[1766911316952,1e-08,87977.0,87961.0,0.0113776]
[1766911317544,1e-08,87977.0,87963.0,0.0113774]
[1766911319654,1e-08,87977.0,87960.0,0.0684178]
[1766911320654,1e-08,87977.0,87958.0,0.15757212]
[1766911320864,0.0113765,87971.0,87958.0,0.09668]
[1766911321047,0.0113765,87971.0,87957.0,0.00017048]
[1766911321647,0.0113761,87974.0,87957.0,0.01154868]
[1766911325057,0.0113764,87972.0,87957.0,0.00017048]
[1766911325362,0.09668,87971.0,87957.0,0.00017048]
[1766911325560,0.057,87970.0,87957.0,0.00017048]
[1766911326256,0.0113767,87969.0,87954.0,0.06089212]
[1766911326454,0.0113767,87969.0,87953.0,0.00227395]
[1766911326655,0.057,87970.0,87953.0,0.00227395]
[1766911326857,0.057,87970.0,87953.0,3.95e-06]
[1766911326858,0.0247063,87969.0,87953.0,3.95e-06]
[1766911327161,0.057,87970.0,87953.0,3.95e-06]
[1766911328157,0.0113771,87966.0,87953.0,3.95e-06]
[1766911329056,0.00017048,87968.0,87953.0,3.95e-06]
[1766911329863,0.0113784,87956.0,87953.0,3.95e-06]
[1766911330162,0.011378,87959.0,87942.0,0.0113801]
[1766911330355,0.15372,87961.0,87935.0,0.09668]
[1766911331556,0.15372,87961.0,87945.0,0.0113798]
[1766911331757,0.15372,87961.0,87935.0,0.09668]
[1766911332261,0.15372,87961.0,87947.0,0.0113795]
[1766911332857,0.05704,87960.0,87947.0,0.0113795]
[1766911335174,0.05704,87960.0,87944.0,0.0113799]
[1766911336673,0.05704,87960.0,87935.0,0.09668]
[1766911337062,0.0113786,87955.0,87935.0,0.011381]
[1766911337273,0.0113782,87958.0,87939.0,0.0113805]
[1766911337876,0.05704,87960.0,87943.0,0.0113799]
[1766911340475,0.0113773,87965.0,87932.0,0.09672]
[1766911340677,0.15372,87964.0,87947.0,0.0113795]
[1766911341972,0.15372,87964.0,87949.0,0.0113792]
[1766911343410,0.09672,87963.0,87949.0,0.0113792]
[1766911343680,0.15372,87963.0,87949.0,0.0113792]
[1766911346576,0.15372,87963.0,87932.0,0.08037252]
[1766911347083,0.15372,87963.0,87933.0,0.11369321]
[1766911348180,0.15372,87963.0,87948.0,0.0113794]
[1766911350284,0.0113771,87966.0,87948.0,0.0113794]
[1766911350478,0.15372,87965.0,87948.0,0.0113794]
[1766911351180,0.0113773,87964.0,87944.0,0.0113798]
[1766911351866,0.0113777,87962.0,87944.0,0.0113798]
[1766911352070,0.15372,87965.0,87946.0,0.0113796]
[1766911352071,0.1650973,87965.0,87946.0,0.0113796]
[1766911353179,0.1650973,87965.0,87949.0,0.0113793]
[1766911353774,0.1650973,87965.0,87946.0,0.0113796]
[1766911355488,0.0113775,87963.0,87932.0,0.16199769]
[1766911355985,0.0113775,87963.0,87933.0,0.11369385]
[1766911357287,0.0113775,87963.0,87943.0,0.01138]
[1766911359086,0.0113773,87964.0,87935.0,0.011381]
[1766911359392,0.0113793,87949.0,87932.0,0.0113814]
[1766911359585,0.057,87948.0,87932.0,0.0113814]
[1766911360377,0.057,87948.0,87930.0,0.00033738]
[1766911360579,0.0113798,87945.0,87930.0,0.00033738]
[1766911360975,0.0683795,87948.0,87930.0,0.01171908]
[1766911361184,0.057,87948.0,87930.0,0.01171908]
[1766911361381,0.0113799,87945.0,87915.0,0.09970324]
[1766911361582,0.057,87944.0,87916.0,0.09672]
[1766911361780,0.00017048,87949.0,87931.0,0.0113815]
[1766911362092,0.15372,87948.0,87931.0,0.0113815]
[1766911362499,0.00011015,87947.0,87931.0,0.0113815]
[1766911363381,0.00011015,87947.0,87916.0,0.09672]
[1766911363787,0.00011015,87947.0,87919.0,0.11371454]
[1766911363984,0.00011015,87947.0,87916.0,0.09672]
[1766911364191,0.0113797,87946.0,87926.0,0.0113822]
[1766911364785,0.00011015,87947.0,87916.0,0.09672]
[1766911365185,0.00011015,87947.0,87917.0,0.11371906]
[1766911365387,0.00011015,87947.0,87917.0,0.12510236]
[1766911368194,0.01148975,87947.0,87927.0,0.011382]
[1766911368999,0.0113799,87945.0,87927.0,0.011382]
[1766911370497,0.0113799,87945.0,87924.0,0.0113825]
[1766911370996,0.0113803,87942.0,87922.0,0.0113827]
[1766911371294,0.057,87941.0,87924.0,0.0113824]
[1766911372898,0.057,87941.0,87916.0,0.09672]
[1766911373287,0.057,87941.0,87917.0,0.11372359]
[1766911374396,0.057,87941.0,87925.0,0.0113823]
[1766911380195,0.057,87941.0,87916.0,0.09672]
[1766911380396,0.0113811,87936.0,87918.0,0.0113833]
[1766911380600,0.09672,87935.0,87918.0,0.0113833]
[1766911381594,0.09672,87935.0,87920.0,0.011383]
[1766911382094,0.09672,87935.0,87917.0,0.0113834]
[1766911382297,0.00017059,87936.0,87908.0,0.10829616]
[1766911382500,0.00024,87935.0,87927.0,0.0113821]
[1766911382697,0.00024,87935.0,87924.0,0.0113825]
[1766911384799,0.00024,87935.0,87921.0,0.00017059]
[1766911385192,0.15372,87934.0,87921.0,0.00017059]
[1766911385389,0.15372,87934.0,87910.0,0.0113843]
[1766911385594,0.0113814,87933.0,87910.0,0.0113843]
[1766911387507,0.15372,87934.0,87910.0,0.0113843]
[1766911390511,0.0113822,87927.0,87901.0,0.09672]
[1766911390710,0.05708919,87926.0,87905.0,0.0113849]
[1766911392010,0.0113825,87925.0,87901.0,0.1081054]
[1766911392208,0.09672,87924.0,87901.0,0.1081054]
[1766911392414,0.0113826,87923.0,87902.0,0.11374558]
[1766911392612,0.0113826,87923.0,87900.0,0.0113856]
[1766911392802,0.00017059,87920.0,87900.0,0.0113856]
[1766911393300,0.00017059,87920.0,87906.0,0.0113848]
[1766911393914,0.10852,87919.0,87909.0,0.0113844]
[1766911395417,0.10852,87919.0,87905.0,0.0113849]
[1766911396716,0.10852,87919.0,87907.0,0.0113846]
[1766911405026,0.10852,87919.0,87901.0,0.0113854]
[1766911405329,0.10852,87919.0,87895.0,0.12513511]
[1766911405722,0.10852,87919.0,87895.0,0.0113863]
[1766911405931,0.10852,87919.0,87896.0,0.11374881]
[1766911406325,0.10852,87919.0,87905.0,0.0113849]
[1766911409623,0.00017059,87920.0,87905.0,0.0113849]
[1766911409822,0.05104,87919.0,87907.0,0.0113846]
[1766911410941,0.05104,87919.0,87894.0,0.00819627]
[1766911411424,0.05104,87919.0,87905.0,0.0113849]
[1766911415035,0.05104,87919.0,87902.0,0.0113853]
[1766911415330,0.05104,87919.0,87900.0,0.0113856]
[1766911415727,0.05104,87919.0,87896.0,0.011386]
[1766911416029,0.0113833,87918.0,87896.0,0.011386]
[1766911416633,0.0113833,87918.0,87897.0,0.11375334]
[1766911417032,0.0113837,87915.0,87893.0,0.01366201]
[1766911418228,0.0113837,87915.0,87895.0,0.0113862]
[1766911419734,0.0113837,87915.0,87893.0,0.00227551]
[1766911420238,0.05104,87919.0,87894.0,0.0113864]
[1766911420239,0.0113833,87918.0,87894.0,0.0113864]
[1766911420424,0.0113837,87916.0,87894.0,0.0113864]
[1766911422334,0.0113837,87916.0,87896.0,0.0113861]
[1766911423126,0.0624232,87919.0,87896.0,0.0113861]
[1766911423325,0.02604233,87918.0,87896.0,0.0113861]
[1766911423528,0.0624232,87919.0,87896.0,0.0113861]
[1766911423727,0.02604233,87918.0,87896.0,0.0113861]